[Event "Titled Tuesday Blitz March 28 Early 2023"]
[White "Michalski, Olaf"]
[Black "Vafin, Ayrat"]
[WhiteFideId "1106740"]
[BlackFideId "4146530"]
[WhiteElo "2173"]
[BlackElo "2317"]
[Result "0-1"]
[Round "09"]
[TimeControl "180+2"]
[Date "2023.03.28"]
[WhiteClock "0:00:03"]
[BlackClock "0:01:02"]

1. d4 {[%clk 0:03:00]}  d5 {[%clk 0:02:59]} 2. c4 {[%clk 0:03:00]}  e6 {[%clk 0:02:59]} 3. Nc3 {[%clk 0:02:59]}  Be7 {[%clk 0:02:57]} 4. Nf3 {[%clk 0:02:58]}  Nf6 {[%clk 0:02:57]} 5. Bg5 {[%clk 0:02:57]}  h6 {[%clk 0:02:56]} 6. Bh4 {[%clk 0:02:56]}  O-O {[%clk 0:02:55]} 7. e3 {[%clk 0:02:57]}  Ne4 {[%clk 0:02:55]} 8. Bxe7 {[%clk 0:02:38]}  Qxe7 {[%clk 0:02:56]} 9. cxd5 {[%clk 0:02:23]}  Nxc3 {[%clk 0:02:55]} 10. bxc3 {[%clk 0:02:24]}  exd5 {[%clk 0:02:55]} 11. Qb3 {[%clk 0:02:11]}  Rd8 {[%clk 0:02:54]} 12. c4 {[%clk 0:02:03]}  c6 {[%clk 0:02:33]} 13. Bd3 {[%clk 0:01:36]}  Be6 {[%clk 0:02:29]} 14. c5 {[%clk 0:01:26]}  Bg4 {[%clk 0:02:10]} 15. Ne5 {[%clk 0:01:22]}  Bc8 {[%clk 0:02:10]} 16. O-O {[%clk 0:01:21]}  Nd7 {[%clk 0:02:09]} 17. Nxd7 {[%clk 0:01:11]}  Qxd7 {[%clk 0:02:05]} 18. a4 {[%clk 0:01:09]}  Qc7 {[%clk 0:01:57]} 19. Rfb1 {[%clk 0:01:00]}  a5 {[%clk 0:01:51]} 20. Qc3 {[%clk 0:00:52]}  Be6 {[%clk 0:01:45]} 21. Rb6 {[%clk 0:00:51]}  Ra7 {[%clk 0:01:45]} 22. Rab1 {[%clk 0:00:51]}  f5 {[%clk 0:01:41]} 23. R1b3 {[%clk 0:00:43]}  Rf8 {[%clk 0:01:40]} 24. Qb2 {[%clk 0:00:41]}  Rf7 {[%clk 0:01:35]} 25. f4 {[%clk 0:00:37]}  Bc8 {[%clk 0:01:34]} 26. Qf2 {[%clk 0:00:22]}  Re7 {[%clk 0:01:30]} 27. Be2 {[%clk 0:00:18]}  Qd8 {[%clk 0:01:25]} 28. Bf3 {[%clk 0:00:14]}  Qe8 {[%clk 0:01:25]} 29. Rd3 {[%clk 0:00:11]}  Qg6 {[%clk 0:01:18]} 30. Rbb3 {[%clk 0:00:10]}  Ra8 {[%clk 0:01:13]} 31. Kf1 {[%clk 0:00:09]}  Qf6 {[%clk 0:01:10]} 32. Ke2 {[%clk 0:00:08]}  g5 {[%clk 0:01:11]} 33. g3 {[%clk 0:00:07]}  g4 {[%clk 0:01:07]} 34. Bg2 {[%clk 0:00:07]}  Be6 {[%clk 0:01:02]} 35. Kd2 {[%clk 0:00:07]}  Bf7 {[%clk 0:01:03]} 36. Kc3 {[%clk 0:00:06]}  Re4 {[%clk 0:01:03]} 37. Bxe4 {[%clk 0:00:03]}  dxe4 {[%clk 0:01:03]} 38. Kb2 {[%clk 0:00:03]}  exd3 {[%clk 0:01:02]} 0-1


[Site "https://www.chess.com"]

[Event "Titled Tuesday Blitz March 28 Early 2023"]
[White "Krzywda, Andrzej"]
[Black "hsd2016"]
[WhiteFideId "1114565"]
[WhiteElo "2155"]
[BlackElo "2007"]
[Result "1-0"]
[Round "09"]
[TimeControl "180+2"]
[Date "2023.03.28"]
[WhiteClock "0:00:52"]
[BlackClock "0:00:49"]

1. e4 {[%clk 0:03:00]}  e5 {[%clk 0:02:59]} 2. Nf3 {[%clk 0:03:00]}  Nc6 {[%clk 0:03:00]} 3. Nc3 {[%clk 0:02:58]}  Nf6 {[%clk 0:03:00]} 4. Bb5 {[%clk 0:02:59]}  Bb4 {[%clk 0:02:59]} 5. O-O {[%clk 0:02:58]}  O-O {[%clk 0:02:58]} 6. Bxc6 {[%clk 0:02:58]}  dxc6 {[%clk 0:02:59]} 7. d3 {[%clk 0:02:57]}  Bxc3 {[%clk 0:02:57]} 8. bxc3 {[%clk 0:02:57]}  Re8 {[%clk 0:02:55]} 9. Bg5 {[%clk 0:02:48]}  h6 {[%clk 0:02:55]} 10. Bh4 {[%clk 0:02:42]}  Bg4 {[%clk 0:02:52]} 11. h3 {[%clk 0:02:41]}  Bh5 {[%clk 0:02:53]} 12. g4 {[%clk 0:02:39]}  Bg6 {[%clk 0:02:53]} 13. Kh2 {[%clk 0:02:29]}  Qd6 {[%clk 0:02:48]} 14. Nd2 {[%clk 0:02:29]}  Nd7 {[%clk 0:02:37]} 15. Nc4 {[%clk 0:02:29]}  Qe6 {[%clk 0:02:37]} 16. Ne3 {[%clk 0:02:29]}  f6 {[%clk 0:02:33]} 17. Qf3 {[%clk 0:02:29]}  Rad8 {[%clk 0:02:30]} 18. Nf5 {[%clk 0:02:26]}  Bxf5 {[%clk 0:02:31]} 19. gxf5 {[%clk 0:02:25]}  Qf7 {[%clk 0:02:29]} 20. Rg1 {[%clk 0:02:25]}  Kh7 {[%clk 0:02:28]} 21. Rg6 {[%clk 0:02:23]}  Nf8 {[%clk 0:02:27]} 22. Rag1 {[%clk 0:02:23]}  Kh8 {[%clk 0:02:09]} 23. Qh5 {[%clk 0:02:17]}  Nxg6 {[%clk 0:02:09]} 24. Rxg6 {[%clk 0:02:08]}  Rf8 {[%clk 0:02:09]} 25. Bxf6 {[%clk 0:01:59]}  Qxf6 {[%clk 0:01:54]} 26. Rxf6 {[%clk 0:01:59]}  Rxf6 {[%clk 0:01:55]} 27. Qg4 {[%clk 0:01:50]}  Re8 {[%clk 0:01:53]} 28. h4 {[%clk 0:01:49]}  c5 {[%clk 0:01:51]} 29. h5 {[%clk 0:01:47]}  Ra6 {[%clk 0:01:45]} 30. Kg2 {[%clk 0:01:41]}  b5 {[%clk 0:01:34]} 31. Kf1 {[%clk 0:01:37]}  Rb6 {[%clk 0:01:31]} 32. Ke2 {[%clk 0:01:35]}  a5 {[%clk 0:01:31]} 33. Kd2 {[%clk 0:01:33]}  b4 {[%clk 0:01:31]} 34. Qg3 {[%clk 0:01:26]}  a4 {[%clk 0:01:27]} 35. f4 {[%clk 0:01:19]}  exf4 {[%clk 0:01:22]} 36. Qxf4 {[%clk 0:01:20]}  Rc6 {[%clk 0:01:10]} 37. e5 {[%clk 0:01:16]}  bxc3+ {[%clk 0:01:08]} 38. Kxc3 {[%clk 0:01:15]}  Kg8 {[%clk 0:01:02]} 39. Qe4 {[%clk 0:01:09]}  Rb6 {[%clk 0:00:56]} 40. f6 {[%clk 0:00:58]}  gxf6 {[%clk 0:00:55]} 41. Qg6+ {[%clk 0:00:58]}  Kf8 {[%clk 0:00:55]} 42. exf6 {[%clk 0:00:55]}  Ree6 {[%clk 0:00:49]} 43. Qg7+ {[%clk 0:00:52]} 1-0


[Site "https://www.chess.com"]

[Event "Titled Tuesday Blitz March 28 Early 2023"]
[White "Richter, Nils"]
[Black "Topalov, Aleksandar"]
[WhiteFideId "12990809"]
[BlackFideId "925659"]
[WhiteElo "2381"]
[BlackElo "2151"]
[Result "1-0"]
[Round "09"]
[TimeControl "180+2"]
[Date "2023.03.28"]
[WhiteClock "0:01:17"]
[BlackClock "0:00:26"]

1. Nf3 {[%clk 0:02:57]}  Nf6 {[%clk 0:02:58]} 2. b3 {[%clk 0:02:57]}  g6 {[%clk 0:02:58]} 3. Bb2 {[%clk 0:02:57]}  Bg7 {[%clk 0:02:58]} 4. g3 {[%clk 0:02:58]}  O-O {[%clk 0:02:58]} 5. Bg2 {[%clk 0:02:59]}  d6 {[%clk 0:02:59]} 6. d4 {[%clk 0:02:58]}  Nbd7 {[%clk 0:02:58]} 7. O-O {[%clk 0:02:58]}  e5 {[%clk 0:02:58]} 8. dxe5 {[%clk 0:02:58]}  Ng4 {[%clk 0:02:59]} 9. h3 {[%clk 0:02:54]}  Ngxe5 {[%clk 0:02:59]} 10. Qc1 {[%clk 0:02:51]}  Re8 {[%clk 0:02:57]} 11. c4 {[%clk 0:02:44]}  a5 {[%clk 0:02:55]} 12. Nc3 {[%clk 0:02:44]}  Nc5 {[%clk 0:02:56]} 13. Rd1 {[%clk 0:02:38]}  Bd7 {[%clk 0:02:54]} 14. Nxe5 {[%clk 0:02:34]}  Bxe5 {[%clk 0:02:50]} 15. Nd5 {[%clk 0:02:29]}  Bc6 {[%clk 0:02:49]} 16. Bxe5 {[%clk 0:02:23]}  Rxe5 {[%clk 0:02:49]} 17. Qf4 {[%clk 0:02:14]}  Bxd5 {[%clk 0:02:47]} 18. Bxd5 {[%clk 0:02:13]}  Qe7 {[%clk 0:02:41]} 19. e3 {[%clk 0:02:09]}  Kg7 {[%clk 0:02:25]} 20. g4 {[%clk 0:02:04]}  h5 {[%clk 0:02:21]} 21. Kg2 {[%clk 0:02:01]}  hxg4 {[%clk 0:02:12]} 22. hxg4 {[%clk 0:02:01]}  g5 {[%clk 0:02:07]} 23. Qd4 {[%clk 0:01:56]}  f6 {[%clk 0:01:52]} 24. Rh1 {[%clk 0:01:53]}  Rh8 {[%clk 0:01:49]} 25. Rxh8 {[%clk 0:01:52]}  Kxh8 {[%clk 0:01:49]} 26. Rh1+ {[%clk 0:01:53]}  Kg7 {[%clk 0:01:49]} 27. a3 {[%clk 0:01:49]}  c6 {[%clk 0:01:42]} 28. Bf3 {[%clk 0:01:48]}  Ne4 {[%clk 0:01:18]} 29. Qa7 {[%clk 0:01:48]}  Qd7 {[%clk 0:00:48]} 30. Qa8 {[%clk 0:01:39]}  Re8 {[%clk 0:00:47]} 31. Qxa5 {[%clk 0:01:38]}  Nc5 {[%clk 0:00:41]} 32. Qc3 {[%clk 0:01:36]}  Ne4 {[%clk 0:00:37]} 33. Qd3 {[%clk 0:01:27]}  d5 {[%clk 0:00:36]} 34. cxd5 {[%clk 0:01:19]}  cxd5 {[%clk 0:00:36]} 35. Rd1 {[%clk 0:01:17]}  Nc5 {[%clk 0:00:28]} 36. Qxd5 {[%clk 0:01:16]}  Qxd5 {[%clk 0:00:26]} 37. Rxd5 {[%clk 0:01:17]}  Nxb3 {[%clk 0:00:26]} 38. Rb5 {[%clk 0:01:17]} 1-0


[Site "https://www.chess.com"]

[Event "Titled Tuesday Blitz March 28 Early 2023"]
[White "Seletsky, Grigory"]
[Black "Yelisieiev, Yevhenii"]
[WhiteFideId "14112191"]
[BlackFideId "14139642"]
[WhiteElo "2490"]
[BlackElo "2447"]
[Result "0-1"]
[Round "09"]
[TimeControl "180+2"]
[Date "2023.03.28"]
[WhiteClock "0:01:18"]
[BlackClock "0:02:12"]

1. e4 {[%clk 0:02:57]}  d6 {[%clk 0:03:00]} 2. d4 {[%clk 0:02:56]}  Nf6 {[%clk 0:03:01]} 3. f3 {[%clk 0:02:56]}  e5 {[%clk 0:03:01]} 4. dxe5 {[%clk 0:02:54]}  dxe5 {[%clk 0:03:02]} 5. Qxd8+ {[%clk 0:02:54]}  Kxd8 {[%clk 0:03:03]} 6. Be3 {[%clk 0:02:54]}  Be6 {[%clk 0:03:02]} 7. Nd2 {[%clk 0:02:54]}  Nbd7 {[%clk 0:03:01]} 8. Bc4 {[%clk 0:02:54]}  Bxc4 {[%clk 0:02:58]} 9. Nxc4 {[%clk 0:02:54]}  c6 {[%clk 0:02:58]} 10. O-O-O {[%clk 0:02:53]}  Kc7 {[%clk 0:02:59]} 11. Ne2 {[%clk 0:02:53]}  b5 {[%clk 0:02:59]} 12. Nd2 {[%clk 0:02:51]}  Bc5 {[%clk 0:02:59]} 13. Bxc5 {[%clk 0:02:49]}  Nxc5 {[%clk 0:03:00]} 14. Nf1 {[%clk 0:02:47]}  Ne8 {[%clk 0:02:52]} 15. Ne3 {[%clk 0:02:48]}  Nd6 {[%clk 0:02:53]} 16. b3 {[%clk 0:02:46]}  Rad8 {[%clk 0:02:49]} 17. a3 {[%clk 0:02:43]}  a5 {[%clk 0:02:46]} 18. Rd2 {[%clk 0:02:42]}  a4 {[%clk 0:02:46]} 19. b4 {[%clk 0:02:29]}  Nd7 {[%clk 0:02:40]} 20. c4 {[%clk 0:02:24]}  bxc4 {[%clk 0:02:30]} 21. Rhd1 {[%clk 0:02:12]}  Nb6 {[%clk 0:02:29]} 22. Kb2 {[%clk 0:02:02]}  Nb5 {[%clk 0:02:19]} 23. Nc2 {[%clk 0:01:17]}  c3+ {[%clk 0:02:16]} 24. Nxc3 {[%clk 0:01:17]}  Nc4+ {[%clk 0:02:16]} 25. Kc1 {[%clk 0:01:18]}  Nxc3 {[%clk 0:02:12]} 0-1


[Site "https://www.chess.com"]

[Event "Titled Tuesday Blitz March 28 Early 2023"]
[White "Valle Maytin, Luis Enrique"]
[Black "Kozin, Yuri"]
[WhiteFideId "3503666"]
[BlackFideId "4129920"]
[WhiteElo "2225"]
[BlackElo "2497"]
[Result "1-0"]
[Round "09"]
[TimeControl "180+2"]
[Date "2023.03.28"]
[WhiteClock "0:00:08"]
[BlackClock "0:00:04"]

1. e4 {[%clk 0:03:00]}  c5 {[%clk 0:02:59]} 2. Nf3 {[%clk 0:02:59]}  e6 {[%clk 0:02:59]} 3. d4 {[%clk 0:02:59]}  cxd4 {[%clk 0:03:00]} 4. Nxd4 {[%clk 0:03:00]}  Nf6 {[%clk 0:03:01]} 5. Nc3 {[%clk 0:03:00]}  d6 {[%clk 0:03:01]} 6. f4 {[%clk 0:02:57]}  Nc6 {[%clk 0:02:59]} 7. Be2 {[%clk 0:02:54]}  Be7 {[%clk 0:02:58]} 8. Be3 {[%clk 0:02:53]}  O-O {[%clk 0:02:58]} 9. O-O {[%clk 0:02:53]}  a6 {[%clk 0:02:57]} 10. Qe1 {[%clk 0:02:53]}  Qc7 {[%clk 0:02:54]} 11. Qg3 {[%clk 0:02:52]}  Nxd4 {[%clk 0:02:54]} 12. Bxd4 {[%clk 0:02:53]}  b5 {[%clk 0:02:41]} 13. a3 {[%clk 0:02:53]}  Bb7 {[%clk 0:02:37]} 14. Bf3 {[%clk 0:02:53]}  Rad8 {[%clk 0:01:58]} 15. Rad1 {[%clk 0:02:51]}  d5 {[%clk 0:01:27]} 16. e5 {[%clk 0:02:37]}  Ne4 {[%clk 0:01:24]} 17. Bxe4 {[%clk 0:02:29]}  dxe4 {[%clk 0:01:24]} 18. b4 {[%clk 0:02:19]}  Qc4 {[%clk 0:00:58]} 19. Qe3 {[%clk 0:02:12]}  a5 {[%clk 0:00:49]} 20. bxa5 {[%clk 0:02:00]}  Bxa3 {[%clk 0:00:41]} 21. a6 {[%clk 0:02:00]}  Bxa6 {[%clk 0:00:26]} 22. Nxe4 {[%clk 0:01:59]}  Be7 {[%clk 0:00:14]} 23. c3 {[%clk 0:01:53]}  b4 {[%clk 0:00:14]} 24. cxb4 {[%clk 0:01:48]}  Qxb4 {[%clk 0:00:13]} 25. Rfe1 {[%clk 0:01:42]}  Bb7 {[%clk 0:00:12]} 26. Nf2 {[%clk 0:01:31]}  Qc4 {[%clk 0:00:10]} 27. Bb6 {[%clk 0:01:26]}  Qc6 {[%clk 0:00:09]} 28. Qf3 {[%clk 0:00:58]}  Rxd1 {[%clk 0:00:07]} 29. Rxd1 {[%clk 0:00:55]}  Qxb6 {[%clk 0:00:07]} 30. Qe2 {[%clk 0:00:54]}  Bc5 {[%clk 0:00:07]} 31. Rf1 {[%clk 0:00:51]}  Qc6 {[%clk 0:00:07]} 32. Qg4 {[%clk 0:00:50]}  h5 {[%clk 0:00:07]} 33. Qg5 {[%clk 0:00:50]}  h4 {[%clk 0:00:08]} 34. h3 {[%clk 0:00:49]}  Qb6 {[%clk 0:00:07]} 35. Qxh4 {[%clk 0:00:48]}  Qc6 {[%clk 0:00:07]} 36. Qg3 {[%clk 0:00:48]}  Ba7 {[%clk 0:00:07]} 37. Kh2 {[%clk 0:00:47]}  Bxf2 {[%clk 0:00:07]} 38. Rxf2 {[%clk 0:00:48]}  Qe4 {[%clk 0:00:07]} 39. Rf3 {[%clk 0:00:41]}  Qf5 {[%clk 0:00:08]} 40. Rb3 {[%clk 0:00:40]}  Bd5 {[%clk 0:00:08]} 41. Rc3 {[%clk 0:00:40]}  Qg6 {[%clk 0:00:08]} 42. Qf2 {[%clk 0:00:39]}  Rb8 {[%clk 0:00:08]} 43. Rg3 {[%clk 0:00:39]}  Qf5 {[%clk 0:00:08]} 44. Rg5 {[%clk 0:00:39]}  Qe4 {[%clk 0:00:07]} 45. Qg3 {[%clk 0:00:38]}  g6 {[%clk 0:00:08]} 46. h4 {[%clk 0:00:32]}  Rb3 {[%clk 0:00:08]} 47. Qg4 {[%clk 0:00:26]}  Rb2 {[%clk 0:00:09]} 48. h5 {[%clk 0:00:25]}  Kg7 {[%clk 0:00:08]} 49. h6+ {[%clk 0:00:21]}  Kh7 {[%clk 0:00:07]} 50. Qg3 {[%clk 0:00:14]}  Rd2 {[%clk 0:00:06]} 51. Rg4 {[%clk 0:00:14]}  Rd3 {[%clk 0:00:06]} 52. Qh4 {[%clk 0:00:14]}  Qf5 {[%clk 0:00:06]} 53. Qe7 {[%clk 0:00:13]}  Qh5+ {[%clk 0:00:06]} 54. Rh4 {[%clk 0:00:08]}  Qf5 {[%clk 0:00:04]} 55. Qf8 {[%clk 0:00:08]} 1-0


[Site "https://www.chess.com"]

[Event "Titled Tuesday Blitz March 28 Early 2023"]
[White "Rom, Jasper"]
[Black "Fernandez Siles, Luis"]
[WhiteFideId "2023733"]
[BlackFideId "2209420"]
[WhiteElo "2233"]
[BlackElo "2186"]
[Result "1-0"]
[Round "09"]
[TimeControl "180+2"]
[Date "2023.03.28"]
[WhiteClock "0:00:51"]
[BlackClock "0:00:05"]

1. e4 {[%clk 0:02:52]}  c5 {[%clk 0:02:59]} 2. Nc3 {[%clk 0:02:51]}  Nc6 {[%clk 0:02:58]} 3. f4 {[%clk 0:02:51]}  g6 {[%clk 0:02:58]} 4. Nf3 {[%clk 0:02:52]}  Bg7 {[%clk 0:02:58]} 5. Bb5 {[%clk 0:02:52]}  Nd4 {[%clk 0:02:58]} 6. O-O {[%clk 0:02:51]}  Nxb5 {[%clk 0:02:54]} 7. Nxb5 {[%clk 0:02:51]}  d5 {[%clk 0:02:55]} 8. d3 {[%clk 0:02:51]}  a6 {[%clk 0:02:48]} 9. Nc3 {[%clk 0:02:51]}  e6 {[%clk 0:02:32]} 10. Qe1 {[%clk 0:02:47]}  Ne7 {[%clk 0:02:25]} 11. Qh4 {[%clk 0:02:36]}  d4 {[%clk 0:02:02]} 12. Ne2 {[%clk 0:02:34]}  Nc6 {[%clk 0:01:58]} 13. Qg3 {[%clk 0:02:33]}  O-O {[%clk 0:01:53]} 14. Bd2 {[%clk 0:02:33]}  b5 {[%clk 0:01:51]} 15. Rae1 {[%clk 0:02:19]}  c4 {[%clk 0:01:41]} 16. Kh1 {[%clk 0:02:08]}  f5 {[%clk 0:01:23]} 17. Ng5 {[%clk 0:02:05]}  h6 {[%clk 0:01:17]} 18. Nf3 {[%clk 0:02:02]}  cxd3 {[%clk 0:01:06]} 19. cxd3 {[%clk 0:02:01]}  fxe4 {[%clk 0:01:06]} 20. dxe4 {[%clk 0:01:58]}  Qe8 {[%clk 0:01:01]} 21. e5 {[%clk 0:01:40]}  d3 {[%clk 0:00:55]} 22. Nc1 {[%clk 0:01:34]}  Ne7 {[%clk 0:00:47]} 23. Nxd3 {[%clk 0:01:33]}  Nf5 {[%clk 0:00:47]} 24. Qf2 {[%clk 0:01:30]}  Bb7 {[%clk 0:00:48]} 25. Nc5 {[%clk 0:01:29]}  Bd5 {[%clk 0:00:46]} 26. a3 {[%clk 0:01:25]}  Bc4 {[%clk 0:00:37]} 27. Rg1 {[%clk 0:01:21]}  Qc6 {[%clk 0:00:21]} 28. b4 {[%clk 0:01:16]}  Rad8 {[%clk 0:00:18]} 29. Be3 {[%clk 0:01:05]}  Bd5 {[%clk 0:00:13]} 30. Rc1 {[%clk 0:00:59]}  Bxf3 {[%clk 0:00:12]} 31. gxf3 {[%clk 0:00:59]}  Nh4 {[%clk 0:00:05]} 32. Ne4 {[%clk 0:00:51]} 1-0


[Site "https://www.chess.com"]

[Event "Titled Tuesday Blitz March 28 Early 2023"]
[White "Levitan, Caleb Levi"]
[Black "Kubatko, Ivan"]
[WhiteFideId "14332620"]
[BlackFideId "24111473"]
[WhiteElo "1963"]
[BlackElo "2285"]
[Result "0-1"]
[Round "09"]
[TimeControl "180+2"]
[Date "2023.03.28"]
[WhiteClock "0:00:01"]
[BlackClock "0:00:07"]

1. e4 {[%clk 0:03:00]}  d5 {[%clk 0:02:58]} 2. exd5 {[%clk 0:02:58]}  Qxd5 {[%clk 0:02:54]} 3. Nc3 {[%clk 0:02:58]}  Qa5 {[%clk 0:02:54]} 4. d4 {[%clk 0:02:58]}  Nf6 {[%clk 0:02:54]} 5. Bc4 {[%clk 0:02:51]}  Bg4 {[%clk 0:02:54]} 6. Nf3 {[%clk 0:02:46]}  Nc6 {[%clk 0:02:53]} 7. Be3 {[%clk 0:02:29]}  O-O-O {[%clk 0:02:52]} 8. O-O {[%clk 0:02:15]}  e5 {[%clk 0:02:52]} 9. d5 {[%clk 0:02:04]}  e4 {[%clk 0:02:52]} 10. h3 {[%clk 0:02:04]}  Bh5 {[%clk 0:02:31]} 11. g4 {[%clk 0:02:01]}  exf3 {[%clk 0:02:31]} 12. gxh5 {[%clk 0:01:28]}  Ne5 {[%clk 0:02:24]} 13. Bb3 {[%clk 0:01:25]}  Bc5 {[%clk 0:02:02]} 14. Bf4 {[%clk 0:01:19]}  Rhe8 {[%clk 0:01:52]} 15. Bxe5 {[%clk 0:01:18]}  Rxe5 {[%clk 0:01:52]} 16. Qxf3 {[%clk 0:01:18]}  Rxh5 {[%clk 0:01:36]} 17. Ne4 {[%clk 0:01:10]}  Re5 {[%clk 0:01:03]} 18. Rae1 {[%clk 0:00:57]}  Rde8 {[%clk 0:00:41]} 19. Nxf6 {[%clk 0:00:20]}  gxf6 {[%clk 0:00:41]} 20. Rxe5 {[%clk 0:00:20]}  fxe5 {[%clk 0:00:22]} 21. Qxf7 {[%clk 0:00:19]}  Rf8 {[%clk 0:00:19]} 22. Qe6+ {[%clk 0:00:19]}  Kb8 {[%clk 0:00:20]} 23. Qxe5 {[%clk 0:00:14]}  Bd6 {[%clk 0:00:16]} 24. Qe4 {[%clk 0:00:14]}  Qd2 {[%clk 0:00:13]} 25. Qe3 {[%clk 0:00:08]}  Qb4 {[%clk 0:00:11]} 26. Re1 {[%clk 0:00:06]}  a6 {[%clk 0:00:09]} 27. c3 {[%clk 0:00:05]}  Qh4 {[%clk 0:00:09]} 28. Re2 {[%clk 0:00:02]}  Rg8+ {[%clk 0:00:09]} 29. Kh1 {[%clk 0:00:02]}  Rf8 {[%clk 0:00:07]} 30. f3 {[%clk 0:00:01]}  Qg3 {[%clk 0:00:07]} 0-1


[Site "https://www.chess.com"]

[Event "Titled Tuesday Blitz March 28 Early 2023"]
[White "Nguyen Hong Nhung"]
[Black "Ruge, Edison"]
[WhiteFideId "12412201"]
[BlackFideId "4401000"]
[WhiteElo "1904"]
[BlackElo "2175"]
[Result "1-0"]
[Round "09"]
[TimeControl "180+2"]
[Date "2023.03.28"]
[WhiteClock "0:00:22"]
[BlackClock "0:00:05"]

1. e4 {[%clk 0:03:00]}  e5 {[%clk 0:02:56]} 2. Nf3 {[%clk 0:02:59]}  Nc6 {[%clk 0:02:56]} 3. d4 {[%clk 0:02:59]}  exd4 {[%clk 0:02:54]} 4. Nxd4 {[%clk 0:03:00]}  Nf6 {[%clk 0:02:54]} 5. Nc3 {[%clk 0:03:01]}  Bb4 {[%clk 0:02:52]} 6. Nxc6 {[%clk 0:03:01]}  Bxc3+ {[%clk 0:02:47]} 7. bxc3 {[%clk 0:03:00]}  bxc6 {[%clk 0:02:48]} 8. Bd3 {[%clk 0:02:53]}  d6 {[%clk 0:02:48]} 9. O-O {[%clk 0:02:52]}  Nd7 {[%clk 0:02:45]} 10. Qg4 {[%clk 0:02:42]}  O-O {[%clk 0:02:30]} 11. Qg3 {[%clk 0:02:34]}  Qf6 {[%clk 0:02:26]} 12. Bf4 {[%clk 0:02:16]}  Ne5 {[%clk 0:02:17]} 13. Be2 {[%clk 0:02:03]}  Ng6 {[%clk 0:02:01]} 14. Be3 {[%clk 0:01:59]}  Qxc3 {[%clk 0:01:58]} 15. f4 {[%clk 0:01:53]}  Qxc2 {[%clk 0:01:56]} 16. Bf3 {[%clk 0:01:40]}  Qc3 {[%clk 0:01:50]} 17. Rfe1 {[%clk 0:01:26]}  f5 {[%clk 0:01:42]} 18. Rac1 {[%clk 0:01:23]}  Qa3 {[%clk 0:01:41]} 19. Rxc6 {[%clk 0:01:19]}  Bb7 {[%clk 0:01:38]} 20. Rxc7 {[%clk 0:01:06]}  Bxe4 {[%clk 0:01:28]} 21. Bxe4 {[%clk 0:01:05]}  fxe4 {[%clk 0:01:28]} 22. Rxg7+ {[%clk 0:01:05]}  Kh8 {[%clk 0:01:21]} 23. Bd4 {[%clk 0:01:04]}  Qb4 {[%clk 0:00:53]} 24. Bc3 {[%clk 0:00:50]}  Qc5+ {[%clk 0:00:40]} 25. Kh1 {[%clk 0:00:50]}  Ne5 {[%clk 0:00:35]} 26. fxe5 {[%clk 0:00:45]}  d5 {[%clk 0:00:33]} 27. e6 {[%clk 0:00:30]}  d4 {[%clk 0:00:31]} 28. Rc7 {[%clk 0:00:31]}  Rg8 {[%clk 0:00:09]} 29. Rxc5 {[%clk 0:00:23]}  Rxg3 {[%clk 0:00:08]} 30. Bxd4+ {[%clk 0:00:23]}  Rg7 {[%clk 0:00:07]} 31. Rc7 {[%clk 0:00:23]}  Rg8 {[%clk 0:00:06]} 32. Rxg7 {[%clk 0:00:23]}  Rxg7 {[%clk 0:00:05]} 33. Rc1 {[%clk 0:00:22]} 1-0


[Site "https://www.chess.com"]

[Event "Titled Tuesday Blitz March 28 Early 2023"]
[White "Fernandez Sanchez, Mario Andres"]
[Black "Mazurkiewicz, Michal"]
[WhiteFideId "6501621"]
[BlackFideId "1124943"]
[WhiteElo "2050"]
[BlackElo "2054"]
[Result "1/2-1/2"]
[Round "09"]
[TimeControl "180+2"]
[Date "2023.03.28"]
[WhiteClock "0:01:49"]
[BlackClock "0:00:22"]

1. d4 {[%clk 0:02:57]}  Nf6 {[%clk 0:03:00]} 2. Bf4 {[%clk 0:02:56]}  g6 {[%clk 0:02:59]} 3. Nc3 {[%clk 0:02:55]}  d5 {[%clk 0:03:00]} 4. e3 {[%clk 0:02:54]}  Bg7 {[%clk 0:03:00]} 5. h4 {[%clk 0:02:54]}  h6 {[%clk 0:02:59]} 6. Nf3 {[%clk 0:02:51]}  O-O {[%clk 0:02:59]} 7. Bd3 {[%clk 0:02:46]}  Bg4 {[%clk 0:02:57]} 8. Qd2 {[%clk 0:02:43]}  Bxf3 {[%clk 0:02:54]} 9. gxf3 {[%clk 0:02:44]}  c5 {[%clk 0:02:54]} 10. dxc5 {[%clk 0:02:44]}  Nc6 {[%clk 0:02:54]} 11. O-O-O {[%clk 0:02:40]}  e5 {[%clk 0:02:54]} 12. Bg3 {[%clk 0:02:37]}  Qa5 {[%clk 0:02:53]} 13. Kb1 {[%clk 0:02:36]}  Qxc5 {[%clk 0:02:53]} 14. h5 {[%clk 0:02:28]}  Nxh5 {[%clk 0:02:51]} 15. Rxh5 {[%clk 0:02:27]}  gxh5 {[%clk 0:02:51]} 16. Rh1 {[%clk 0:02:27]}  f5 {[%clk 0:02:17]} 17. Rxh5 {[%clk 0:02:05]}  e4 {[%clk 0:02:00]} 18. fxe4 {[%clk 0:01:59]}  Bxc3 {[%clk 0:02:00]} 19. bxc3 {[%clk 0:01:56]}  dxe4 {[%clk 0:01:59]} 20. Bxe4 {[%clk 0:01:53]}  Qb5+ {[%clk 0:01:30]} 21. Ka1 {[%clk 0:01:52]}  Qf1+ {[%clk 0:01:15]} 22. Kb2 {[%clk 0:01:51]}  Qb5+ {[%clk 0:00:44]} 23. Ka1 {[%clk 0:01:51]}  Qf1+ {[%clk 0:00:32]} 24. Kb2 {[%clk 0:01:51]}  Qb5+ {[%clk 0:00:22]} 25. Ka1 {[%clk 0:01:49]} 1/2-1/2


[Site "https://www.chess.com"]

[Event "Titled Tuesday Blitz March 28 Early 2023"]
[White "Adithya A Chullikkad"]
[Black "Kopczynski, Michal"]
[WhiteFideId "45078734"]
[BlackFideId "1124200"]
[WhiteElo "1984"]
[BlackElo "2212"]
[Result "0-1"]
[Round "09"]
[TimeControl "180+2"]
[Date "2023.03.28"]
[WhiteClock "0:02:30"]
[BlackClock "0:02:46"]

1. d4 {[%clk 0:03:00]}  Nf6 {[%clk 0:02:59]} 2. Bf4 {[%clk 0:02:56]}  g6 {[%clk 0:03:00]} 3. e3 {[%clk 0:02:55]}  Bg7 {[%clk 0:03:00]} 4. c3 {[%clk 0:02:56]}  O-O {[%clk 0:03:00]} 5. Bd3 {[%clk 0:02:55]}  d6 {[%clk 0:03:01]} 6. h3 {[%clk 0:02:55]}  Nc6 {[%clk 0:03:02]} 7. Nf3 {[%clk 0:02:53]}  Nd7 {[%clk 0:03:02]} 8. Bh2 {[%clk 0:02:52]}  e5 {[%clk 0:03:03]} 9. dxe5 {[%clk 0:02:51]}  Ndxe5 {[%clk 0:03:03]} 10. Nxe5 {[%clk 0:02:50]}  Nxe5 {[%clk 0:03:04]} 11. Bc2 {[%clk 0:02:50]}  Be6 {[%clk 0:03:01]} 12. Nd2 {[%clk 0:02:51]}  Qd7 {[%clk 0:03:01]} 13. O-O {[%clk 0:02:50]}  Bxh3 {[%clk 0:02:55]} 14. gxh3 {[%clk 0:02:45]}  Qxh3 {[%clk 0:02:56]} 15. Be4 {[%clk 0:02:43]}  Ng4 {[%clk 0:02:50]} 16. Bg3 {[%clk 0:02:39]}  Nxe3 {[%clk 0:02:47]} 17. Re1 {[%clk 0:02:30]}  Nxd1 {[%clk 0:02:46]} 0-1


[Site "https://www.chess.com"]